bitfinex/quotes_BTCUSD_20230108
["timestamp","ask_amount","ask_price","bid_price","bid_amount"]
[1673159539689,0.57143515,16956.0,16955.0,3.32597778]
[1673159540324,0.129,16956.0,16955.0,3.32597778]
[1673159541618,0.57143919,16956.0,16955.0,3.32597778]
[1673159541786,0.57143919,16956.0,16955.0,3.91577378]
[1673159543323,0.57143919,16956.0,16955.0,3.9156911]
[1673159543787,0.56643919,16956.0,16955.0,3.9156911]
[1673159549983,0.124,16956.0,16955.0,3.9156911]
[1673159551250,0.5665878,16956.0,16955.0,4.5231131]
[1673159558004,0.56652703,16956.0,16955.0,4.5231131]
[1673159559502,0.12393923,16956.0,16955.0,4.5231131]
[1673159559756,0.56658148,16956.0,16955.0,4.5231131]
[1673159561921,0.12393923,16956.0,16955.0,4.5231131]
[1673159562966,0.12393923,16956.0,16955.0,3.9333171]
[1673159563948,0.12393923,16956.0,16955.0,3.3258951]
[1673159564209,0.12393923,16956.0,16955.0,3.9333171]
[1673159564418,0.12393923,16956.0,16955.0,3.9526779]
[1673159569905,0.65427523,16956.0,16955.0,3.9526779]
[1673159570164,0.65427523,16956.0,16955.0,3.3452559]
[1673159576097,0.65427523,16956.0,16955.0,2.59897068]
[1673159578105,0.65427523,16956.0,16955.0,3.3452559]
[1673159578606,0.12393923,16956.0,16955.0,3.3452559]
[1673159580046,0.12393923,16956.0,16955.0,3.3449239]
[1673159583320,0.12393923,16956.0,16955.0,2.59863868]
[1673159585143,0.12393923,16956.0,16955.0,3.3449239]
[1673159589309,0.12393923,16956.0,16955.0,2.59863868]
[1673159592030,0.12393923,16956.0,16955.0,3.3449239]
[1673159599537,0.65427523,16956.0,16955.0,3.3449239]
[1673159600146,0.12393923,16956.0,16955.0,3.3449239]
[1673159600363,0.65427523,16956.0,16955.0,3.3449239]
[1673159601821,0.65427523,16956.0,16955.0,2.59863868]
[1673159603735,0.65427523,16956.0,16955.0,3.3449239]
[1673159604513,0.65427523,16956.0,16955.0,3.34482059]
[1673159606039,0.12393923,16956.0,16955.0,3.34482059]
[1673159606513,0.65427523,16956.0,16955.0,3.95224259]
[1673159608774,0.65427523,16956.0,16955.0,3.20595737]
[1673159609028,0.65427523,16956.0,16955.0,2.59853537]
[1673159610511,0.65427523,16956.0,16955.0,3.20595737]
[1673159610771,0.65427523,16956.0,16955.0,3.34482059]
[1673159611367,0.65427523,16956.0,16955.0,3.95224259]
[1673159615652,0.65427523,16956.0,16955.0,3.34482059]
[1673159615912,0.65427523,16956.0,16955.0,3.20595737]
[1673159616160,0.65427523,16956.0,16955.0,2.59853537]
[1673159616405,0.65427523,16956.0,16955.0,3.20595737]
[1673159616695,0.65427523,16956.0,16955.0,2.59853537]
[1673159616913,0.65427523,16956.0,16955.0,3.20595737]
[1673159617198,0.65427523,16956.0,16955.0,2.59853537]
[1673159617444,0.65427523,16956.0,16955.0,3.20595737]
[1673159617668,0.65427523,16956.0,16955.0,2.59853537]
[1673159617891,0.65427523,16956.0,16955.0,3.34482059]
[1673159618137,0.65427523,16956.0,16955.0,3.95224259]
[1673159622899,0.65427523,16956.0,16955.0,3.20595737]
[1673159623153,0.65427523,16956.0,16955.0,2.59853537]
[1673159623717,0.65427523,16956.0,16955.0,3.20595737]
[1673159623927,0.65427523,16956.0,16955.0,2.59853537]
[1673159624631,0.65427523,16956.0,16955.0,2.5984453]
[1673159624873,0.65427523,16956.0,16955.0,3.34473052]
[1673159625179,0.65427523,16956.0,16955.0,3.95215252]
[1673159629813,0.12393923,16956.0,16955.0,3.2058673]
[1673159630038,0.12393923,16956.0,16955.0,2.5984453]
[1673159630515,0.65427523,16956.0,16955.0,2.5984453]
[1673159631381,0.12393923,16956.0,16955.0,2.5984453]
[1673159631866,0.12393923,16956.0,16955.0,3.34473052]
[1673159632085,0.12393923,16956.0,16955.0,4.54194852]
[1673159636896,0.12393923,16956.0,16955.0,3.7956633]
[1673159639011,0.12393923,16956.0,16955.0,4.54194852]
[1673159648676,0.12393923,16956.0,16955.0,4.54183238]
[1673159656715,0.65427523,16956.0,16955.0,4.54183238]
[1673159657872,0.65427523,16956.0,16955.0,3.93441038]
[1673159658366,0.65427523,16956.0,16955.0,3.93412773]
[1673159658615,0.65427523,16956.0,16955.0,3.3402506]
[1673159659869,0.65427523,16956.0,16955.0,2.7454546]
[1673159662074,0.65427523,16956.0,16955.0,2.74805545]
[1673159663308,0.65427523,16956.0,16955.0,2.00177023]
[1673159665023,0.65427523,16956.0,16955.0,2.58262689]
[1673159665236,0.65427523,16956.0,16955.0,3.32891211]
[1673159665474,0.65427523,16956.0,16955.0,3.93633411]
[1673159666982,0.65427523,16956.0,16955.0,3.93373326]
[1673159667489,0.65427523,16956.0,16955.0,3.9338633]
[1673159670038,0.65427523,16956.0,16955.0,3.7597633]
[1673159670288,0.65427523,16956.0,16955.0,3.01347808]
[1673159670807,0.65418251,16956.0,16955.0,2.40605608]
[1673159672140,0.65418251,16956.0,16955.0,3.1523413]
[1673159672601,0.65418251,16956.0,16955.0,3.7597633]
[1673159673690,0.65418251,16956.0,16955.0,4.3495593]
[1673159674777,0.65418251,16956.0,16955.0,3.7597633]
[1673159677166,0.65418251,16956.0,16955.0,3.01347808]
[1673159679357,0.65418251,16956.0,16955.0,3.7597633]
[1673159684355,0.65418251,16956.0,16955.0,3.01347808]
[1673159686375,0.65418251,16956.0,16955.0,3.7597633]
[1673159691347,0.65418251,16956.0,16955.0,3.01347808]
[1673159693507,0.65418251,16956.0,16955.0,3.7597633]
[1673159694680,0.65418251,16956.0,16955.0,3.7596456]
[1673159695962,0.65418251,16956.0,16955.0,3.75951556]
[1673159697011,0.65418251,16956.0,16955.0,3.75963941]
[1673159697338,0.65418251,16956.0,16955.0,3.17878275]
[1673159697572,0.65418251,16956.0,16955.0,3.1786589]
[1673159697891,0.65418251,16956.0,16955.0,3.17878275]
[1673159698369,0.65418251,16956.0,16955.0,2.43249753]
[1673159699291,0.65418251,16956.0,16955.0,1.82507553]
[1673159699505,0.65418251,16956.0,16955.0,2.43249753]
[1673159700425,0.65418251,16956.0,16955.0,3.17878275]
[1673159701514,0.65418251,16956.0,16955.0,3.1786589]
[1673159701808,0.65418251,16956.0,16955.0,3.17878862]
[1673159702273,0.65418251,16956.0,16955.0,3.77266575]
[1673159702522,0.65006851,16956.0,16955.0,3.77266575]
[1673159705417,0.65006851,16956.0,16955.0,3.02638053]
[1673159707680,0.65006851,16956.0,16955.0,3.77266575]
[1673159710931,0.11973251,16956.0,16955.0,3.77266575]
[1673159712526,0.11473251,16956.0,16955.0,3.02638053]
[1673159712772,0.11473251,16956.0,16955.0,2.41895853]
[1673159714580,0.10973251,16956.0,16955.0,3.16524375]
[1673159714835,0.10973251,16956.0,16955.0,3.77266575]
[1673159715128,0.55225191,16956.0,16955.0,3.77266575]
[1673159715597,0.10973251,16956.0,16955.0,3.77266575]
[1673159717384,0.55224346,16956.0,16955.0,3.77266575]
[1673159717637,0.10973251,16956.0,16955.0,3.16523819]
[1673159719646,0.55224045,16956.0,16955.0,3.16523819]
[1673159720146,0.55224045,16956.0,16955.0,3.77266019]
[1673159722651,0.55224045,16956.0,16955.0,3.02637497]
[1673159723145,0.55224045,16956.0,16955.0,2.41895297]
[1673159724563,0.55224045,16956.0,16955.0,3.16523819]
[1673159724816,0.90618514,16956.0,16955.0,3.75503419]
[1673159725066,0.90618514,16956.0,16955.0,4.36245619]
[1673159726243,0.55224045,16956.0,16955.0,3.77266019]
[1673159729853,0.55224045,16956.0,16955.0,3.16523819]
[1673159731062,0.55224045,16956.0,16955.0,2.41895297]
[1673159731307,0.55224045,16956.0,16955.0,3.00874897]
[1673159732349,0.55224045,16956.0,16955.0,2.41895297]
[1673159733242,0.55224045,16956.0,16955.0,3.16523819]
[1673159733477,0.55215692,16956.0,16955.0,3.79333866]
[1673159734499,0.90607647,16956.0,16955.0,4.38313466]
[1673159738214,0.90607647,16956.0,16955.0,3.63684944]
[1673159738465,0.90607647,16956.0,16955.0,3.02942744]
[1673159740040,1.17150221,16956.0,16955.0,3.02942744]
[1673159740280,1.17150221,16956.0,16955.0,3.77571266]
[1673159741273,0.72899427,16956.0,16955.0,3.77571266]
[1673159741534,1.17150221,16956.0,16955.0,3.77571266]
[1673159741777,0.72899427,16956.0,16955.0,3.77571266]
[1673159742027,0.72899427,16956.0,16955.0,4.38313466]
[1673159745521,0.72899427,16956.0,16955.0,4.37813466]
[1673159749546,1.17150221,16956.0,16955.0,4.37813466]
[1673159750040,1.17150221,16956.0,16955.0,4.55223466]
[1673159750281,0.72899427,16956.0,16955.0,4.55223466]
[1673159750524,1.17150221,16956.0,16955.0,4.55223466]
[1673159750797,0.72899427,16956.0,16955.0,4.55223466]
[1673159751291,0.90607647,16956.0,16955.0,3.80594944]
[1673159754243,0.90607647,16956.0,16955.0,4.55223466]
[1673159758015,0.90607647,16956.0,16955.0,2.78284666]
[1673159758510,0.90607647,16956.0,16955.0,3.96243866]
[1673159758809,0.90607647,16956.0,16955.0,4.55223466]
[1673159759061,0.90607647,16956.0,16955.0,3.80594944]
[1673159760907,1.17155818,16956.0,16955.0,3.80594944]
[1673159761159,1.17155818,16956.0,16955.0,4.55223466]
[1673159761404,0.90607647,16956.0,16955.0,4.55223466]
[1673159763613,1.1715576,16956.0,16955.0,4.55223466]
[1673159764344,0.72904966,16956.0,16955.0,4.55223466]
[1673159766580,0.90607647,16956.0,16955.0,4.55223466]
[1673159767060,0.90607647,16956.0,16955.0,4.5521535]
[1673159771431,0.90607647,16956.0,16955.0,3.80586828]
[1673159771679,0.90607647,16956.0,16955.0,3.19844628]
[1673159773465,0.90607647,16956.0,16955.0,3.9447315]
[1673159773704,0.90607647,16956.0,16955.0,4.5521535]
[1673159778278,0.55215692,16956.0,16955.0,4.5521535]
[1673159778534,0.55215692,16956.0,16955.0,3.80574412]
[1673159778796,0.55215692,16956.0,16955.0,3.19832212]
[1673159779301,0.55226498,16956.0,16955.0,2.60444499]
[1673159779788,0.55226526,16956.0,16955.0,2.60444499]
[1673159780042,0.10964898,16956.0,16955.0,2.60444499]
[1673159780306,0.55222934,16956.0,16955.0,2.60444499]
[1673159780551,0.55222934,16956.0,16955.0,3.35073021]
[1673159781029,0.55222934,16956.0,16955.0,3.94460734]
[1673159781275,0.10964898,16956.0,16955.0,3.94460734]
[1673159781524,0.10964898,16956.0,16955.0,4.55202934]
[1673159782265,0.10964898,16956.0,16955.0,4.55217229]
[1673159783945,0.55218878,16956.0,16955.0,4.55217229]
[1673159785546,0.55218878,16956.0,16955.0,3.80588707]
[1673159785764,0.55218878,16956.0,16955.0,3.19846507]
[1673159786000,0.55218878,16956.0,16955.0,3.1885165]
[1673159786484,0.55218878,16956.0,16955.0,3.20338477]
[1673159786734,0.10964898,16956.0,16955.0,3.20338477]
[1673159787787,0.10964898,16956.0,16955.0,3.94966999]
[1673159788026,0.10964898,16956.0,16955.0,4.55709199]
[1673159790035,0.10964898,16956.0,16955.0,4.55698255]
[1673159792534,0.55205718,16956.0,16955.0,4.55698255]
[1673159792793,0.55205718,16956.0,16955.0,3.81069733]
[1673159793060,0.55205718,16956.0,16955.0,3.20327533]
[1673159793556,0.55205718,16956.0,16955.0,3.20304072]
[1673159794599,0.55205718,16956.0,16955.0,3.94932594]
[1673159795103,0.55205718,16956.0,16955.0,4.55674794]
[1673159798269,0.90597631,16956.0,16955.0,4.55674794]
[1673159799785,0.90597631,16956.0,16955.0,3.81046272]
[1673159800275,0.90597631,16956.0,16955.0,3.20304072]
[1673159801876,0.90597631,16956.0,16955.0,3.94932594]
[1673159802906,0.90597631,16956.0,16955.0,4.55674794]
[1673159805278,0.55205718,16956.0,16955.0,4.55674794]
[1673159806738,0.55205718,16956.0,16955.0,3.81046272]
[1673159806958,0.55205718,16956.0,16955.0,3.20304072]
[1673159808786,0.55205718,16956.0,16955.0,3.94932594]
[1673159809032,0.55205718,16956.0,16955.0,4.55674794]
[1673159810733,0.55205718,16956.0,16955.0,4.55174794]
[1673159813990,0.55205718,16956.0,16955.0,3.80546272]
[1673159814273,0.55205718,16956.0,16955.0,3.19804072]
[1673159815985,0.55205718,16956.0,16955.0,3.94432594]
[1673159816197,0.55205718,16956.0,16955.0,4.55174794]
[1673159820971,0.55205718,16956.0,16955.0,3.80546272]
[1673159822725,0.55205718,16956.0,16955.0,3.19804072]
[1673159822973,0.55205718,16956.0,16955.0,3.94432594]
[1673159823485,0.55205718,16956.0,16955.0,4.55174794]
[1673159828055,0.55205718,16956.0,16955.0,3.80546272]
[1673159828312,0.55205718,16956.0,16955.0,3.19804072]
[1673159830028,0.55205718,16956.0,16955.0,3.94432594]
[1673159830268,0.55205718,16956.0,16955.0,4.55174794]
[1673159832768,0.55205718,16956.0,16955.0,4.55163132]
[1673159835048,0.55205718,16956.0,16955.0,3.8053461]
[1673159837025,0.55205718,16956.0,16955.0,4.55163132]
[1673159838853,0.9061773,16956.0,16955.0,4.55163132]
[1673159839064,0.55205718,16956.0,16955.0,4.55163132]
[1673159839841,0.90617693,16956.0,16955.0,4.55163132]
[1673159847092,0.90610516,16956.0,16955.0,4.55163132]
[1673159851058,0.90547516,16956.0,16955.0,4.55163132]
[1673159854260,0.90547516,16956.0,16955.0,3.94420932]
[1673159856015,0.90547516,16956.0,16955.0,3.1979241]
[1673159858249,0.90547516,16956.0,16955.0,3.94420932]
[1673159858510,0.90547516,16956.0,16955.0,4.55163132]
[1673159863111,0.90547516,16956.0,16955.0,3.8053461]
[1673159865150,0.90547516,16956.0,16955.0,4.55163132]
[1673159866233,0.90547516,16956.0,16955.0,4.53227052]
[1673159870214,0.90547516,16956.0,16955.0,3.7859853]
[1673159871214,0.90547516,16956.0,16955.0,3.78591672]
[1673159872113,0.90547516,16956.0,16955.0,4.53220194]
[1673159877102,0.90547516,16956.0,16955.0,3.78591672]
[1673159879254,0.90547516,16956.0,16955.0,4.53220194]
[1673159883129,0.90547516,16956.0,16955.0,3.19189664]
[1673159883397,0.5516555,16956.0,16955.0,2.5845935]
[1673159886302,0.10894721,16956.0,16955.0,1.9947975]
[1673159887084,0.55157927,16956.0,16955.0,3.1920155]
[1673159888370,0.55157927,16956.0,16955.0,3.93830072]
[1673159889058,0.55157927,16956.0,16955.0,4.53217785]
[1673159889843,0.55157927,16956.0,16955.0,4.53205899]
[1673159890102,0.55157927,16956.0,16955.0,4.53220074]
[1673159893372,0.55157927,16956.0,16955.0,3.78591552]
[1673159895369,0.55157927,16956.0,16955.0,4.53220074]
[1673159898032,0.55157927,16956.0,16955.0,3.94240474]
[1673159898546,0.55157927,16956.0,16955.0,3.34852761]
[1673159900540,0.55157927,16956.0,16955.0,2.60214688]
[1673159900789,0.55157927,16956.0,16955.0,1.99472488]
[1673159902405,0.55157927,16956.0,16955.0,2.7410101]
[1673159902664,0.55157927,16956.0,16955.0,3.3484321]
[1673159902902,0.55157927,16956.0,16955.0,3.94230923]
[1673159904179,0.55157927,16956.0,16955.0,4.53210523]
[1673159904366,0.55157927,16956.0,16955.0,3.9382281]
[1673159904838,0.55157927,16956.0,16955.0,3.3484321]
[1673159905119,0.10894721,16956.0,16955.0,3.3484321]
[1673159906128,0.55142881,16956.0,16955.0,3.9382281]
[1673159906384,0.55142881,16956.0,16955.0,4.53210523]
[1673159906630,0.10894721,16956.0,16955.0,4.53210523]
[1673159907378,0.55142605,16956.0,16955.0,3.78582001]
[1673159907629,0.10894721,16956.0,16955.0,3.19194288]
[1673159908386,0.5514223,16956.0,16955.0,3.19194288]
[1673159909656,0.5514223,16956.0,16955.0,3.9382281]
[1673159909908,0.55141703,16956.0,16955.0,3.9382281]
[1673159910136,0.10894721,16956.0,16955.0,3.9382281]
[1673159912411,0.10894721,16956.0,16955.0,4.53210523]
[1673159913672,0.10894721,16956.0,16955.0,3.93808635]
[1673159913929,0.10894721,16956.0,16955.0,3.33078435]
[1673159914628,0.10894721,16956.0,16955.0,2.58449913]
[1673159915157,0.10894721,16956.0,16955.0,1.99470313]
[1673159916425,0.10894721,16956.0,16955.0,2.58449913]
[1673159916674,0.10894721,16956.0,16955.0,3.33078435]
[1673159916928,0.55141297,16956.0,16955.0,3.93820635]
[1673159917388,0.10894721,16956.0,16955.0,4.53208348]
[1673159917643,0.55141247,16956.0,16955.0,4.53208348]
[1673159920436,0.10894721,16956.0,16955.0,4.53208348]
[1673159920943,0.10894721,16956.0,16955.0,4.53200365]
[1673159921683,0.10894721,16956.0,16955.0,3.78571843]
[1673159923747,0.10894721,16956.0,16955.0,4.53200365]
[1673159923997,0.10894721,16956.0,16955.0,3.94220765]
[1673159924321,0.10894721,16956.0,16955.0,3.34833052]
[1673159924517,0.10887561,16956.0,16955.0,3.34833052]
[1673159924758,0.10887561,16956.0,16955.0,3.93812652]
[1673159925769,0.10887561,16956.0,16955.0,3.34833052]
[1673159928586,0.10887561,16956.0,16955.0,1.9946233]
[1673159929071,0.10887561,16956.0,16955.0,2.58850043]
[1673159930069,0.10887561,16956.0,16955.0,1.99460161]
[1673159930291,0.10887561,16956.0,16955.0,1.99448264]
[1673159930860,0.10887561,16956.0,16955.0,2.74076786]
[1673159931132,0.10887561,16956.0,16955.0,2.74088683]
[1673159935811,0.10887561,16956.0,16955.0,1.99460161]
[1673159937087,0.55147796,16956.0,16955.0,2.58847874]
[1673159937852,0.55147796,16956.0,16955.0,3.33476396]
[1673159938100,0.10887561,16956.0,16955.0,3.33476396]
[1673159938357,0.10887561,16956.0,16955.0,3.94218596]
[1673159939147,0.5514819,16956.0,16955.0,3.94218596]
[1673159939369,0.10887561,16956.0,16955.0,3.94218596]
[1673159939640,0.55148191,16956.0,16955.0,3.94218596]
[1673159939889,0.55148191,16956.0,16955.0,4.53198196]
[1673159942643,0.90553912,16956.0,16955.0,4.53198196]
[1673159942897,0.90553912,16956.0,16955.0,3.78569674]
[1673159943152,0.9055386,16956.0,16955.0,3.78569674]
[1673159943407,0.9055386,16956.0,16955.0,3.17827474]
[1673159943666,0.55148191,16956.0,16955.0,3.17827474]
[1673159943913,0.90551673,16956.0,16955.0,3.17827474]
[1673159944920,0.90551673,16956.0,16955.0,3.92455996]
[1673159946225,0.90551673,16956.0,16955.0,4.53198196]
[1673159946762,0.90551673,16956.0,16955.0,4.53189651]
[1673159947525,0.90551673,16956.0,16955.0,3.92447451]
[1673159947786,0.55148191,16956.0,16955.0,3.92447451]
[1673159948312,0.90548255,16956.0,16955.0,3.92447451]
[1673159948798,0.90548255,16956.0,16955.0,4.53189651]
[1673159949754,0.90548255,16956.0,16955.0,3.78561129]
[1673159950004,0.90548255,16956.0,16955.0,3.17818929]
[1673159951881,0.90548255,16956.0,16955.0,3.92447451]
[1673159952387,0.90548255,16956.0,16955.0,4.53189651]
[1673159953676,0.90548255,16956.0,16955.0,3.92447451]
[1673159954985,0.55148191,16956.0,16955.0,3.92447451]
[1673159956737,0.55148191,16956.0,16955.0,3.17818929]
[1673159958998,0.55148191,16956.0,16955.0,3.92447451]
[1673159961392,0.55148191,16956.0,16955.0,4.53189651]
[1673159962410,0.55148191,16956.0,16955.0,3.92447451]
[1673159963885,0.55148191,16956.0,16955.0,3.17818929]
[1673159966082,0.55148191,16956.0,16955.0,3.92447451]
[1673159967601,0.55142469,16956.0,16955.0,3.33059738]
[1673159967843,0.10887561,16956.0,16955.0,3.33059738]
[1673159968358,0.10887561,16956.0,16955.0,2.74080138]
[1673159969421,0.10887561,16956.0,16955.0,2.74073189]
[1673159970965,0.10887561,16956.0,16955.0,1.99444667]
[1673159971232,0.10887561,16956.0,16955.0,2.5883238]
[1673159972963,0.10887561,16956.0,16955.0,3.33460902]
[1673159973678,0.10887561,16956.0,16955.0,2.74073189]
[1673159976472,0.10887561,16956.0,16955.0,3.34815389]
[1673159976726,0.10887561,16956.0,16955.0,2.74073189]
[1673159978161,0.10887561,16956.0,16955.0,1.99444667]
[1673159980218,0.10887561,16956.0,16955.0,2.74073189]
[1673159981676,0.10887561,16956.0,16955.0,3.34815389]
[1673159982678,0.10887561,16956.0,16955.0,2.74073189]
[1673159982937,0.10887561,16956.0,16955.0,3.33052789]
[1673159983702,0.10887561,16956.0,16955.0,3.93794989]
[1673159984235,0.55142691,16956.0,16955.0,3.93794989]
[1673159984519,0.55142691,16956.0,16955.0,3.33052789]
[1673159984777,0.55142691,16956.0,16955.0,3.42113229]
[1673159984993,0.55142691,16956.0,16955.0,2.67484707]
[1673159986034,0.55143993,16956.0,16955.0,2.67484707]
[1673159987233,0.55143993,16956.0,16955.0,3.33052789]
[1673159987746,0.90548217,16956.0,16955.0,3.33052789]
[1673159989788,1.17097919,16956.0,16955.0,3.33052789]
[1673159990302,0.72841487,16956.0,16955.0,3.33052789]
[1673159992202,0.72841487,16956.0,16955.0,2.58424267]
[1673159992451,0.72841487,16956.0,16955.0,3.1781198]
[1673159994213,0.72841487,16956.0,16955.0,3.92440502]
[1673159994474,0.55133435,16956.0,16955.0,4.53182702]
[1673159995495,0.90537659,16956.0,16955.0,4.53182702]
[1673159995749,0.55133435,16956.0,16955.0,4.53182702]
[1673160003745,0.28583733,16956.0,16955.0,4.53182702]
[1673160010321,0.28583733,16956.0,16955.0,3.92440502]
[1673160011186,0.10887561,16956.0,16955.0,3.92440502]
[1673160011435,0.28583733,16956.0,16955.0,3.92440605]
[1673160013203,0.55133435,16956.0,16955.0,3.92440605]
[1673160014414,0.55127241,16956.0,16955.0,3.92440605]
[1673160021810,0.90531465,16956.0,16955.0,3.92440605]
[1673160023725,0.72835293,16956.0,16955.0,3.92440605]
[1673160026119,1.17091725,16956.0,16955.0,3.92440605]
[1673160026358,0.72835293,16956.0,16955.0,3.92440605]
[1673160031377,0.90542023,16956.0,16955.0,3.92440605]
[1673160033561,0.90542023,16956.0,16955.0,3.90372758]
[1673160035936,0.90542023,16956.0,16955.0,3.90360758]
[1673160036388,0.90542023,16956.0,16955.0,3.9037266]
[1673160039164,0.90542023,16956.0,16955.0,3.9036296]
[1673160048668,1.17089705,16956.0,16955.0,3.9036296]
[1673160048913,0.90542023,16956.0,16955.0,3.90363054]
[1673160049139,0.90542023,16956.0,16955.0,3.90351058]
[1673160049947,0.90542023,16956.0,16955.0,3.90363054]
[1673160050690,1.17090527,16956.0,16955.0,3.90363054]
[1673160050954,0.90542023,16956.0,16955.0,3.90363054]
[1673160051205,0.72833989,16956.0,16955.0,3.90363054]
[1673160051450,0.90542023,16956.0,16955.0,3.90363054]
[1673160051716,0.72837852,16956.0,16955.0,3.90363054]
[1673160080991,0.72837852,16956.0,16955.0,4.33695254]
[1673160081237,0.72837852,16956.0,16955.0,3.90363054]
[1673160081477,0.72837852,16956.0,16955.0,4.33695254]
[1673160081723,0.72837852,16956.0,16955.0,3.72953054]
[1673160082995,0.72837852,16956.0,16955.0,3.90363054]
[1673160083326,0.72837852,16956.0,16955.0,4.51105254]
[1673160088618,0.72837852,16956.0,16955.0,4.49618427]
[1673160103771,0.72837852,16956.0,16955.0,3.88876227]
[1673160104036,0.72837852,16956.0,16955.0,3.29488514]
[1673160107748,0.55134365,16956.0,16955.0,3.29488514]
[1673160107956,0.55134365,16956.0,16955.0,3.90230714]
[1673160118158,0.90538589,16956.0,16955.0,3.90230714]
[1673160118975,0.55134365,16956.0,16955.0,3.90230714]
[1673160119436,0.55134365,16956.0,16955.0,4.49618427]
[1673160119690,0.90538589,16956.0,16955.0,4.49618427]
[1673160122796,0.72837852,16956.0,16955.0,4.49618427]
[1673160124519,0.90541502,16956.0,16955.0,4.49618427]
[1673160124739,0.90541505,16956.0,16955.0,4.49618427]
[1673160125211,0.90541505,16956.0,16955.0,3.88876227]
[1673160125482,0.72837852,16956.0,16955.0,3.88876227]
[1673160127080,0.90541685,16956.0,16955.0,3.88876227]
[1673160127842,0.72837852,16956.0,16955.0,3.88876227]
[1673160128799,0.90541866,16956.0,16955.0,3.88876227]
[1673160130598,0.72837852,16956.0,16955.0,3.88876227]
[1673160130831,0.72837852,16956.0,16955.0,4.49618427]
[1673160131078,0.90542096,16956.0,16955.0,4.49618427]
[1673160131321,0.90542095,16956.0,16955.0,3.74989905]
[1673160131564,0.90542099,16956.0,16955.0,3.14247705]
[1673160132069,0.55137875,16956.0,16955.0,3.14247705]
[1673160133335,0.90542099,16956.0,16955.0,3.14247705]
[1673160133580,0.55137875,16956.0,16955.0,4.49618427]
[1673160133833,0.90542602,16956.0,16955.0,4.49618427]
[1673160135001,0.55138378,16956.0,16955.0,4.49618427]
[1673160135251,0.90542602,16956.0,16955.0,4.49618427]
[1673160135508,0.55138378,16956.0,16955.0,4.49618427]
[1673160136278,0.90542602,16956.0,16955.0,4.49618427]
[1673160136750,0.55138378,16956.0,16955.0,4.49618427]
[1673160136995,0.90542602,16956.0,16955.0,4.49618427]
[1673160137257,0.55138378,16956.0,16955.0,4.49618427]
[1673160137505,0.90542602,16956.0,16955.0,4.49618427]
[1673160138478,0.90542602,16956.0,16955.0,3.74989905]
[1673160139518,0.55138378,16956.0,16955.0,3.92687147]
[1673160140268,0.28586117,16956.0,16955.0,3.31944947]
[1673160140480,0.28586117,16956.0,16955.0,4.06573469]
[1673160140988,0.28586117,16956.0,16955.0,4.67315669]
[1673160143036,0.55138378,16956.0,16955.0,4.67315669]
[1673160143833,0.28586117,16956.0,16955.0,4.67315669]
[1673160147877,0.28586117,16956.0,16955.0,4.49618427]
[1673160148366,0.28586117,16956.0,16955.0,3.88876227]
[1673160148624,0.55138378,16956.0,16955.0,3.88876227]
[1673160149615,0.55138378,16956.0,16955.0,3.95396665]
[1673160154632,0.55138378,16956.0,16955.0,3.20768143]
[1673160154902,0.55138378,16956.0,16955.0,3.95396665]
[1673160156438,0.55138378,16956.0,16955.0,4.56138865]
[1673160159882,0.55138378,16956.0,16955.0,3.81510343]
[1673160160140,0.55138378,16956.0,16955.0,3.20768143]
[1673160161894,0.55138378,16956.0,16955.0,3.95396665]
[1673160162925,0.55138378,16956.0,16955.0,4.56138865]
[1673160167005,0.55138378,16956.0,16955.0,3.81510343]
[1673160167272,0.55138378,16956.0,16955.0,3.20768143]
[1673160168896,0.55138378,16956.0,16955.0,3.95396665]
[1673160173987,0.55138378,16956.0,16955.0,3.20768143]
[1673160175991,0.55138378,16956.0,16955.0,3.95396665]
[1673160181114,0.55138378,16956.0,16955.0,3.20768143]
[1673160183043,0.55138378,16956.0,16955.0,3.95396665]
[1673160184722,0.55138378,16956.0,16955.0,3.94896665]
[1673160186256,0.90542602,16956.0,16955.0,3.94896665]
[1673160188085,0.90542602,16956.0,16955.0,3.20268143]
[1673160188599,0.72837852,16956.0,16955.0,3.19768143]
[1673160190093,0.72837852,16956.0,16955.0,3.94396665]
[1673160195193,0.72837852,16956.0,16955.0,3.19768143]
[1673160197240,0.72837852,16956.0,16955.0,3.94396665]
[1673160202162,0.72837852,16956.0,16955.0,3.19768143]
[1673160204186,0.72837852,16956.0,16955.0,3.94396665]
[1673160209164,0.72837852,16956.0,16955.0,3.19768143]
[1673160211488,0.72837852,16956.0,16955.0,3.94396665]
[1673160216252,0.72837852,16956.0,16955.0,3.19768143]
[1673160218428,0.72837852,16956.0,16955.0,3.94396665]
[1673160219119,0.72837852,16956.0,16955.0,4.55138865]
[1673160220383,0.72837852,16956.0,16955.0,3.94396665]
[1673160221364,0.72837852,16956.0,16955.0,4.55138865]
[1673160223337,0.72837852,16956.0,16955.0,3.80510343]
[1673160223547,0.72837852,16956.0,16955.0,3.19768143]
[1673160225374,0.72837852,16956.0,16955.0,3.94396665]
[1673160227156,0.72837852,16956.0,16955.0,4.55138865]
[1673160230357,0.72837852,16956.0,16955.0,3.94396665]
[1673160230607,0.72837852,16956.0,16955.0,3.80510343]
[1673160231712,0.72837852,16956.0,16955.0,3.19768143]
[1673160232533,0.72837852,16956.0,16955.0,3.94396665]
[1673160233010,0.72837852,16956.0,16955.0,4.55138865]
[1673160233832,1.17094284,16956.0,16955.0,4.55138865]
[1673160234088,1.17094284,16956.0,16955.0,3.94396665]
[1673160235363,0.72837852,16956.0,16955.0,3.35008952]
[1673160235618,1.17094284,16956.0,16955.0,3.35008952]
[1673160236077,0.72837852,16956.0,16955.0,3.35008952]
[1673160237720,0.72837852,16956.0,16955.0,2.6038043]
[1673160239602,0.72837852,16956.0,16955.0,3.35008952]
[1673160240390,0.72837852,16956.0,16955.0,3.94384669]
[1673160240646,0.72837852,16956.0,16955.0,4.55126869]
[1673160244370,0.72837852,16956.0,16955.0,4.5514115]
[1673160244593,0.72837852,16956.0,16955.0,3.80512628]
[1673160245402,0.72837852,16956.0,16955.0,3.19770428]
[1673160246616,0.72837852,16956.0,16955.0,3.9439895]
[1673160246860,0.72837852,16956.0,16955.0,4.5514115]
[1673160251639,0.72837852,16956.0,16955.0,3.80512628]
[1673160253674,0.72837852,16956.0,16955.0,4.5514115]
[1673160260652,0.72837852,16956.0,16955.0,3.9439895]
[1673160260913,0.72837852,16956.0,16955.0,4.5514115]
[1673160263824,0.72837852,16956.0,16955.0,4.55126869]
[1673160265940,0.72837852,16956.0,16955.0,3.80498347]
[1673160266439,0.72837852,16956.0,16955.0,3.19756147]
[1673160267993,0.72837852,16956.0,16955.0,3.94384669]
[1673160268252,0.72837852,16956.0,16955.0,4.55126869]
[1673160268767,0.72837852,16956.0,16955.0,4.55143212]
[1673160270553,0.72837852,16956.0,16955.0,3.94401012]
[1673160270799,0.72837852,16956.0,16955.0,4.55143212]
[1673160271050,0.72837852,16956.0,16955.0,3.95755499]
[1673160271808,0.72837852,16956.0,16955.0,3.35013299]
[1673160272885,0.72837852,16956.0,16955.0,2.60384777]
[1673160273343,0.72837852,16956.0,16955.0,3.1977249]
[1673160273646,0.72837852,16956.0,16955.0,3.8051469]
[1673160275166,0.72837852,16956.0,16955.0,4.55143212]
[1673160275692,0.72837852,16956.0,16955.0,3.94401012]
[1673160275953,0.72837852,16956.0,16955.0,4.55143212]